fUSD/lending_fUSD_20240125
["ID","MTS","AMOUNT","RATE_DAILY","PERIOD"]
[312692696,1706146277257,-500.0,0.00051506,31]
[312692697,1706146277266,-500.0,0.00051506,31]
[312692698,1706146277276,-2243.1,0.00051506,31]
[312692699,1706146277287,-653.5,0.00051506,31]
[312692700,1706146277297,-500.0,0.00051506,31]
[312692701,1706146277306,-500.0,0.00051506,31]
[312692702,1706146277315,-1703.1,0.00051506,31]
[312692703,1706146277323,-500.0,0.00051506,31]
[312692704,1706146277333,-500.0,0.00051506,31]
[312692705,1706146277342,-1463.46,0.00051506,31]
[312692706,1706146277352,-523.46,0.00051506,31]
[312692707,1706146277362,-618.47,0.00051506,31]
[312692708,1706146277372,-786.25,0.00051506,31]
[312692709,1706146277382,-712.48,0.00051506,31]
[312692710,1706146277391,-675.83,0.00051506,31]
[312692711,1706146277400,-500.0,0.00051506,31]
[312692712,1706146277409,-3133.01,0.00051506,31]
[312692713,1706146277419,-500.0,0.00051506,31]
[312692714,1706146277429,-500.0,0.00051506,31]
[312692715,1706146277438,-1000.0,0.00051506,7]
[312692716,1706146277447,-500.0,0.00051506,31]
[312692717,1706146277456,-500.0,0.00051506,2]
[312692718,1706146277465,-500.0,0.00051506,31]
[312692719,1706146277475,-740.88,0.00051506,31]
[312692720,1706146277484,-500.0,0.00051506,31]
[312692721,1706146277493,-500.0,0.00051506,31]
[312692722,1706146277502,-574.65,0.00051506,31]
[312692723,1706146277511,-543.36,0.00051506,31]
[312692724,1706146277521,-500.0,0.00051506,31]
[312692725,1706146277530,-500.0,0.00051506,31]
[312692726,1706146277539,-500.0,0.00051506,31]
[312692727,1706146277550,-500.0,0.00051506,31]
[312692728,1706146277560,-500.0,0.00051506,31]
[312692729,1706146277570,-500.0,0.00051506,31]
[312692730,1706146277579,-337.37073884,0.00051506,31]
[312692731,1706146277589,-500.0,0.00051506,31]
[312692732,1706146277598,-500.0,0.00051506,31]
[312692733,1706146277607,-500.0,0.00051506,31]
[312692734,1706146277616,-500.0,0.00051506,31]
[312692735,1706146277625,-2689.96,0.00051506,31]
[312692736,1706146277634,-439.18910885,0.00051506,31]
[312692737,1706146277643,-500.0,0.00051506,31]
[312692738,1706146277653,-500.0,0.00051506,31]
[312692739,1706146277662,-500.0,0.00051506,31]
[312692740,1706146277673,-2426.6,0.00051506,31]
[312692741,1706146277682,-500.0,0.00051506,31]
[312692742,1706146277691,-470.79944157,0.00051506,31]
[312692743,1706146277700,-1416.58,0.00051506,31]
[312692744,1706146277710,-500.0,0.00051506,31]
[312692745,1706146277720,-500.0,0.00051506,31]
[312692746,1706146277730,-500.0,0.00051506,31]
[312692747,1706146277740,-500.0,0.00051506,31]
[312692748,1706146277750,-1979.22,0.00051506,31]
[312692749,1706146277760,-500.0,0.00051506,31]
[312692750,1706146277770,-500.0,0.00051506,31]
[312692751,1706146277778,-500.0,0.00051506,31]
[312692752,1706146277788,-500.0,0.00051506,31]
[312692753,1706146277799,-500.0,0.00051506,31]
[312692754,1706146277808,-500.0,0.00051506,31]
[312692755,1706146277818,-500.0,0.00051506,31]
[312692756,1706146277827,-206.09210698,0.00051506,31]
[312692757,1706146277837,-500.0,0.00051506,31]
[312692758,1706146277847,-500.0,0.00051506,31]
[312692759,1706146277857,-500.0,0.00051506,31]
[312692760,1706146277867,-2110.35,0.00051506,5]
[312692761,1706146277876,-1126.94,0.00051506,31]
[312692762,1706146277885,-500.0,0.00051506,31]
[312692763,1706146277894,-500.0,0.00051506,31]
[312692764,1706146277906,-500.0,0.00051506,31]
[312692765,1706146277915,-4721.0,0.00051506,31]
[312692766,1706146277924,-500.0,0.00051506,31]
[312692767,1706146277936,-500.0,0.00051506,31]
[312692768,1706146277945,-500.0,0.00051506,31]
[312692769,1706146277955,-500.0,0.00051506,31]
[312692770,1706146277964,-500.0,0.00051506,31]
[312692771,1706146277974,-500.0,0.00051506,31]
[312692772,1706146277983,-500.0,0.00051506,31]
[312692773,1706146277993,-681.71,0.00051506,31]
[312692774,1706146278002,-545.17,0.00051506,31]
[312692775,1706146278011,-701.67,0.00051506,31]
[312692776,1706146278022,-500.0,0.00051506,31]
[312692777,1706146278031,-500.0,0.00051506,31]
[312692778,1706146278040,-999.66,0.00051506,31]
[312692779,1706146278051,-548.88,0.00051506,31]
[312692780,1706146278060,-701.87,0.00051506,31]
[312692781,1706146278069,-500.0,0.00051506,31]
[312692782,1706146278078,-2009.81,0.00051506,31]
[312692783,1706146278088,-736.76,0.00051506,31]
[312692784,1706146278097,-500.0,0.00051506,31]
[312692785,1706146278106,-485.82580034,0.00051506,31]
[312692786,1706146278116,-611.97,0.00051506,31]
[312692787,1706146278125,-500.0,0.00051506,31]
[312692788,1706146278134,-500.0,0.00051506,31]
[312692789,1706146278143,-500.0,0.00051506,31]
[312692790,1706146278153,-500.0,0.00051506,31]
[312692791,1706146278163,-500.0,0.00051506,31]
[312692792,1706146278173,-509.16,0.00051506,31]
[312692793,1706146278182,-500.0,0.00051506,31]
[312692794,1706146278194,-500.0,0.00051506,31]
[312692795,1706146278204,-500.0,0.00051506,31]
[312692796,1706146278213,-390.99805914,0.00051506,31]
[312692797,1706146278222,-500.0,0.00051506,31]
[312692798,1706146278233,-500.0,0.00051506,31]
[312692799,1706146278242,-500.0,0.00051506,31]
[312692800,1706146278252,-500.0,0.00051506,31]
[312692801,1706146278261,-500.0,0.00051506,31]
[312692802,1706146278270,-2754.97,0.00051506,31]
[312692803,1706146278282,-512.98616347,0.00051506,31]
[312692804,1706146278291,-1672.5,0.00051506,31]
[312692805,1706146278301,-981.86,0.00051506,31]
[312692806,1706146278311,-500.0,0.00051506,31]
[312692807,1706146278321,-619.82,0.00051506,31]
[312692808,1706146278332,-1193.62,0.00051506,31]
[312692809,1706146278341,-500.0,0.00051506,31]
[312692810,1706146278350,-500.0,0.00051506,31]
[312692811,1706146278359,-500.0,0.00051506,31]
[312692812,1706146278369,-500.0,0.00051506,31]
[312692813,1706146278378,-500.0,0.00051506,31]
[312692814,1706146278387,-500.0,0.00051506,31]
[312692815,1706146278451,-665.91,0.00051506,31]
[312692816,1706146278461,-500.0,0.00051506,31]
[312692817,1706146278471,-500.0,0.00051506,31]
[312692818,1706146278480,-500.0,0.00051506,31]
[312692819,1706146278490,-500.0,0.00051506,31]
[312692820,1706146278499,-758.0,0.00051506,2]
[312692821,1706146278507,-500.0,0.00051506,31]
[312692822,1706146278517,-609.56,0.00051506,31]
[312692823,1706146278526,-756.88,0.00051506,31]
[312692824,1706146278535,-151.544614,0.00051506,14]
[312692825,1706146278545,-151.544614,0.00051506,14]
[312692826,1706146278555,-3253.59833192,0.00051521,28]
[312692827,1706146278565,-153.87365434,0.0005153,60]
[312692828,1706146278575,-331.50937404,0.00051553,60]
[312692829,1706146278585,-176.55973396,0.00051559,60]
[312692830,1706146278595,-152.22862118,0.00051598,60]
[312692831,1706146278604,-156.4315178,0.00051606,60]
[312692832,1706146278614,-156.4315178,0.00051641,60]
[312692833,1706146278623,-1073.01879214,0.00051652,60]
[312692834,1706146278633,-1500.0,0.00051665,7]
[312692835,1706146278642,-150.0,0.00051686,7]
[312692836,1706146278653,-428.93267564,0.00051689,60]
[312692837,1706146278663,-428.93267564,0.00051694,60]
[312692838,1706146278673,-500.0,0.00051698,120]
[312692839,1706146278682,-2495.0,0.000517,117]
[312692840,1706146278692,-162.27493029,0.00051709,60]
[312692841,1706146278701,-500.0,0.00051715,14]
[312692842,1706146278710,-150.0,0.00051726,7]
[312692843,1706146278719,-153.78758588,0.0005173,60]
[312692844,1706146278728,-204.0,0.00051733,35]
[312692845,1706146278737,-150.0,0.0005174,7]
[312692846,1706146278746,-150.0,0.0005176,7]
[312692847,1706146278755,-1500.0,0.00051767,7]
[312692848,1706146278764,-1432.12203069,0.00051778,120]
[312692849,1706146278774,-500.0,0.00051779,31]
[312692850,1706146278783,-500.0,0.00051779,31]
[312692851,1706146278792,-500.0,0.00051779,31]
[312692852,1706146278802,-500.0,0.00051779,31]
[312692853,1706146278811,-500.0,0.00051779,31]
[312692854,1706146278820,-500.0,0.00051779,31]
[312692855,1706146278829,-500.0,0.00051779,31]
[312692856,1706146278839,-500.0,0.00051779,31]
[312692857,1706146278848,-500.0,0.00051779,31]
[312692858,1706146278857,-500.0,0.00051779,31]
[312692859,1706146278867,-500.0,0.00051779,31]
[312692860,1706146278876,-500.0,0.00051779,31]
[312692861,1706146278886,-500.0,0.00051779,31]
[312692862,1706146278895,-500.0,0.00051779,31]
[312692863,1706146278907,-1816.41,0.0005178,5]
[312692864,1706146278917,-500.0,0.0005178,31]
[312692865,1706146278926,-529.92,0.0005178,31]
[312692866,1706146278936,-500.0,0.0005178,31]
[312692867,1706146278945,-500.0,0.0005178,31]
[312692868,1706146278955,-500.0,0.0005178,20]
[312692869,1706146278964,-500.0,0.0005178,31]
[312692870,1706146278974,-500.0,0.0005178,14]
[312692871,1706146278983,-500.0,0.0005178,31]
[312692872,1706146278993,-500.0,0.0005178,31]
[312692873,1706146279002,-232.05300751,0.0005178,31]
[312692874,1706146279013,-848.51,0.0005178,31]
[312692875,1706146279022,-500.0,0.0005178,31]
[312692876,1706146279032,-616.95,0.0005178,7]
[312692877,1706146279041,-500.0,0.0005178,2]
[312692878,1706146279051,-500.0,0.0005178,31]
[312692879,1706146279060,-559.52,0.0005178,2]
[312692880,1706146279070,-688.23,0.0005178,31]
[312692881,1706146279079,-500.0,0.0005178,31]
[312692882,1706146279088,-500.0,0.0005178,31]
[312692883,1706146279097,-500.0,0.0005178,31]
[312692884,1706146279107,-500.0,0.0005178,31]
[312692885,1706146279115,-500.0,0.0005178,31]
[312692886,1706146279124,-500.0,0.0005178,31]
[312692887,1706146279133,-500.0,0.0005178,31]
[312692888,1706146279142,-500.0,0.0005178,31]
[312692889,1706146279151,-500.0,0.0005178,31]
[312692890,1706146279160,-500.0,0.0005178,31]
[312692891,1706146279169,-500.0,0.0005178,31]
[312692892,1706146279178,-500.0,0.0005178,31]
[312692893,1706146279188,-500.0,0.0005178,31]
[312692894,1706146279197,-500.0,0.0005178,31]
[312692895,1706146279206,-500.0,0.0005178,31]
[312692896,1706146279215,-500.0,0.0005178,31]
[312692897,1706146279224,-600.0,0.0005178,120]
[312692898,1706146279233,-500.0,0.0005178,31]
[312692899,1706146279241,-500.0,0.0005178,31]
[312692900,1706146279251,-500.0,0.0005178,31]
[312692901,1706146279260,-500.0,0.0005178,31]
[312692902,1706146279269,-701.96,0.0005178,31]
[312692903,1706146279279,-500.0,0.0005178,31]
[312692904,1706146279288,-500.0,0.0005178,31]
[312692905,1706146279298,-500.0,0.0005178,31]
[312692906,1706146279307,-500.0,0.0005178,31]
[312692907,1706146279317,-500.0,0.0005178,31]
[312692908,1706146279326,-500.0,0.0005178,31]
[312692909,1706146279336,-500.0,0.0005178,31]
[312692910,1706146279345,-387.12480187,0.0005178,31]
[312692911,1706146279355,-500.0,0.0005178,31]
[312692912,1706146279364,-500.0,0.0005178,31]
[312692913,1706146279374,-500.0,0.0005178,31]
[312692914,1706146279383,-500.0,0.0005178,31]
[312692915,1706146279393,-543.18,0.0005178,31]
[312692916,1706146279402,-675.4,0.0005178,7]
[312692917,1706146279411,-500.0,0.0005178,31]
[312692918,1706146279421,-500.0,0.0005178,2]
[312692919,1706146279430,-500.0,0.0005178,31]
[312692920,1706146279439,-500.0,0.0005178,31]
[312692921,1706146279448,-987.23,0.0005178,2]
[312692922,1706146279457,-587.51,0.0005178,31]
[312692923,1706146279467,-500.0,0.0005178,31]
[312692924,1706146279476,-481.98555472,0.0005178,31]
[312692925,1706146279485,-500.0,0.0005178,31]
[312692926,1706146279495,-500.0,0.0005178,31]
[312692927,1706146279505,-476.13267764,0.0005178,31]
[312692928,1706146279516,-500.0,0.0005178,31]
[312692929,1706146279526,-500.0,0.0005178,31]
[312692930,1706146279537,-500.0,0.0005178,31]
[312692931,1706146279549,-500.0,0.0005178,31]
[312692932,1706146279558,-626.78,0.0005178,31]
[312692933,1706146279568,-500.0,0.0005178,31]
[312692934,1706146279577,-500.0,0.0005178,31]
[312692935,1706146279586,-500.0,0.0005178,31]
[312692936,1706146279595,-500.0,0.0005178,31]
[312692937,1706146279604,-500.0,0.0005178,31]
[312692938,1706146279614,-500.0,0.0005178,31]
[312692939,1706146279624,-500.0,0.0005178,31]
[312692940,1706146279634,-500.0,0.0005178,31]
[312692941,1706146279644,-500.0,0.0005178,31]
[312692942,1706146279654,-500.0,0.0005178,31]
[312692943,1706146279663,-500.0,0.0005178,31]
[312692944,1706146279673,-150.0,0.0005178,31]
[312692945,1706146279683,-500.0,0.0005178,31]
[312692946,1706146279694,-509.51129368,0.0005178,31]
[312692947,1706146279704,-421.13750583,0.0005178,31]
[312692948,1706146279715,-500.0,0.0005178,31]
[312692949,1706146279725,-480.45205559,0.0005178,31]
[312692950,1706146279736,-628.14922103,0.0005178,31]
[312692951,1706146279745,-500.0,0.0005178,31]
[312692952,1706146279755,-500.0,0.0005178,31]
[312692953,1706146279764,-507.94,0.0005178,2]
[312692954,1706146279773,-500.0,0.0005178,31]
[312692955,1706146279783,-537.33,0.0005178,31]
[312692956,1706146279792,-500.0,0.0005178,31]
[312692957,1706146279804,-500.0,0.0005178,31]
[312692958,1706146279813,-500.0,0.0005178,31]
[312692959,1706146279823,-500.0,0.0005178,31]
[312692960,1706146279832,-500.0,0.0005178,31]
[312692961,1706146279842,-500.0,0.0005178,31]
[312692962,1706146279852,-500.0,0.0005178,31]
[312692963,1706146279861,-500.0,0.0005178,31]
[312692964,1706146279871,-388.39834681,0.0005178,31]
[312692965,1706146279880,-1329.0,0.0005178,31]
[312692966,1706146279889,-500.0,0.0005178,31]
[312692967,1706146279899,-500.0,0.0005178,31]
[312692968,1706146279909,-675.54,0.0005178,31]
[312692969,1706146279918,-500.0,0.0005178,31]
[312692970,1706146279928,-500.0,0.0005178,31]
[312692971,1706146279941,-500.0,0.0005178,31]
[312692972,1706146279951,-500.0,0.0005178,31]
[312692973,1706146279963,-500.0,0.0005178,31]
[312692974,1706146279973,-940.22,0.0005178,31]
[312692975,1706146279982,-500.0,0.0005178,31]
[312692976,1706146279991,-531.52084449,0.0005178,31]
[312692977,1706146280001,-500.0,0.0005178,31]
[312692978,1706146280012,-500.0,0.0005178,31]
[312692979,1706146280021,-1239.78,0.0005178,31]
[312692980,1706146280031,-500.0,0.0005178,31]
[312692981,1706146280040,-500.0,0.0005178,31]
[312692982,1706146280052,-157.74132185,0.0005178,31]
[312692983,1706146280061,-500.0,0.0005178,31]
[312692984,1706146280071,-581.54,0.0005178,31]
[312692985,1706146280080,-5325.15,0.0005178,5]
[312692986,1706146280089,-2230.67,0.0005178,15]
[312692987,1706146280098,-715.36,0.0005178,31]
[312692988,1706146280107,-500.0,0.0005178,31]
[312692989,1706146280117,-500.0,0.0005178,31]
[312692990,1706146280126,-1066.28,0.0005178,31]
[312692991,1706146280136,-500.0,0.0005178,31]
[312692992,1706146280145,-1658.06,0.0005178,31]
[312692993,1706146280155,-500.0,0.0005178,31]
[312692994,1706146280164,-1235.51,0.0005178,31]
[312692995,1706146280173,-500.0,0.0005178,31]
[312692996,1706146280183,-500.0,0.0005178,31]
[312692997,1706146280193,-2243.1,0.0005178,31]
[312692998,1706146280203,-653.5,0.0005178,31]
[312692999,1706146280212,-500.0,0.0005178,31]
[312693000,1706146280222,-500.0,0.0005178,31]
[312693001,1706146280231,-1703.1,0.0005178,31]
[312693002,1706146280240,-500.0,0.0005178,31]
[312693003,1706146280250,-500.0,0.0005178,31]
[312693004,1706146280259,-1463.46,0.0005178,31]
[312693005,1706146280268,-523.46,0.0005178,31]
[312693006,1706146280277,-618.47,0.0005178,31]
[312693007,1706146280287,-786.25,0.0005178,31]
[312693008,1706146280296,-675.83,0.0005178,31]
[312693009,1706146280307,-712.48,0.0005178,31]
[312693010,1706146280316,-500.0,0.0005178,31]
[312693011,1706146280326,-3133.01,0.0005178,31]
[312693012,1706146280335,-500.0,0.0005178,31]
[312693013,1706146280346,-500.0,0.0005178,31]
[312693014,1706146280355,-1000.0,0.0005178,7]
[312693015,1706146280365,-500.0,0.0005178,2]
[312693016,1706146280375,-500.0,0.0005178,31]
[312693017,1706146280384,-256.64364475,0.0005178,31]
[312693018,1706146280393,-740.88,0.0005178,31]
[312693019,1706146280403,-500.0,0.0005178,31]
[312693020,1706146280413,-500.0,0.0005178,31]
[312693021,1706146280423,-574.65,0.0005178,31]
[312693022,1706146280432,-543.36,0.0005178,31]
[312693023,1706146280443,-500.0,0.0005178,31]
[312693024,1706146280452,-500.0,0.0005178,31]
[312693025,1706146280462,-500.0,0.0005178,31]
[312693026,1706146280471,-500.0,0.0005178,31]
[312693027,1706146280481,-500.0,0.0005178,31]
[312693028,1706146280491,-500.0,0.0005178,31]
[312693029,1706146280500,-500.0,0.0005178,31]
[312693030,1706146280510,-500.0,0.0005178,31]
[312693031,1706146280519,-500.0,0.0005178,31]
[312693032,1706146280529,-500.0,0.0005178,31]
[312693033,1706146280539,-2689.96,0.0005178,31]
[312693034,1706146280549,-500.0,0.0005178,31]
[312693035,1706146280563,-500.0,0.0005178,31]
[312693036,1706146280573,-208.65815262,0.0005178,31]
[312693037,1706146280583,-2426.6,0.0005178,31]
[312693038,1706146280593,-500.0,0.0005178,31]
[312693039,1706146280602,-1416.58,0.0005178,31]
[312693040,1706146280612,-500.0,0.0005178,31]
[312693041,1706146280622,-500.0,0.0005178,31]
[312693042,1706146280631,-500.0,0.0005178,31]
[312693043,1706146280640,-500.0,0.0005178,31]
[312693044,1706146280649,-1979.22,0.0005178,31]
[312693045,1706146280658,-500.0,0.0005178,31]
[312693046,1706146280668,-500.0,0.0005178,31]
[312693047,1706146280677,-500.0,0.0005178,31]
[312693048,1706146280686,-500.0,0.0005178,31]
[312693049,1706146280696,-500.0,0.0005178,31]
[312693050,1706146280706,-500.0,0.0005178,31]
[312693051,1706146280716,-500.0,0.0005178,31]
[312693052,1706146280725,-500.0,0.0005178,31]
[312693053,1706146280735,-500.0,0.0005178,31]
[312693054,1706146280744,-500.0,0.0005178,31]
[312693055,1706146280754,-2110.35,0.0005178,5]
[312693056,1706146280763,-1126.94,0.0005178,31]
[312693057,1706146280773,-500.0,0.0005178,31]
[312693058,1706146280783,-500.0,0.0005178,31]
[312693059,1706146280792,-500.0,0.0005178,31]
[312693060,1706146280803,-4721.0,0.0005178,31]
[312693061,1706146280812,-500.0,0.0005178,31]
[312693062,1706146280822,-500.0,0.0005178,31]
[312693063,1706146280831,-500.0,0.0005178,31]
[312693064,1706146280841,-500.0,0.0005178,31]
[312693065,1706146280850,-500.0,0.0005178,31]
[312693066,1706146280859,-500.0,0.0005178,31]
[312693067,1706146280869,-500.0,0.0005178,31]
[312693068,1706146280878,-681.71,0.0005178,31]
[312693069,1706146280887,-545.17,0.0005178,31]
[312693070,1706146280896,-701.67,0.0005178,31]
[312693071,1706146280908,-500.0,0.0005178,31]
[312693072,1706146280917,-500.0,0.0005178,31]
[312693073,1706146280926,-999.66,0.0005178,31]
[312693074,1706146280938,-548.88,0.0005178,31]
[312693075,1706146280947,-701.87,0.0005178,31]
[312693076,1706146280956,-500.0,0.0005178,31]
[312693077,1706146280966,-2009.81,0.0005178,31]
[312693078,1706146280975,-736.76,0.0005178,31]
[312693079,1706146280985,-500.0,0.0005178,31]
[312693080,1706146280994,-611.97,0.0005178,31]
[312693081,1706146281003,-500.0,0.0005178,31]
[312693082,1706146281013,-500.0,0.0005178,31]
[312693083,1706146281022,-500.0,0.0005178,31]
[312693084,1706146281033,-500.0,0.0005178,31]
[312693085,1706146281042,-500.0,0.0005178,31]
[312693086,1706146281056,-509.16,0.0005178,31]
[312693087,1706146281066,-500.0,0.0005178,31]
[312693088,1706146281076,-500.0,0.0005178,31]
[312693089,1706146281086,-500.0,0.0005178,31]
[312693090,1706146281095,-500.0,0.0005178,31]
[312693091,1706146281104,-500.0,0.0005178,31]
[312693092,1706146281114,-500.0,0.0005178,31]
[312693093,1706146281124,-500.0,0.0005178,31]
[312693094,1706146281134,-500.0,0.0005178,31]
[312693095,1706146281144,-2754.97,0.0005178,31]
[312693096,1706146281154,-1672.5,0.0005178,31]
[312693097,1706146281164,-981.86,0.0005178,31]
[312693098,1706146281174,-500.0,0.0005178,31]
[312693099,1706146281184,-619.82,0.0005178,31]
[312693100,1706146281194,-1193.62,0.0005178,31]
[312693101,1706146281204,-192.02119041,0.0005178,31]
[312693102,1706146281214,-500.0,0.0005178,31]
[312693103,1706146281225,-500.0,0.0005178,31]
[312693104,1706146281235,-500.0,0.0005178,31]
[312693105,1706146281245,-500.0,0.0005178,31]
[312693106,1706146281255,-500.0,0.0005178,31]
[312693107,1706146281265,-500.0,0.0005178,31]
[312693108,1706146281276,-665.91,0.0005178,31]
[312693109,1706146281286,-500.0,0.0005178,31]
[312693110,1706146281296,-500.0,0.0005178,31]
[312693111,1706146281312,-500.0,0.0005178,31]
[312693112,1706146281322,-500.0,0.0005178,31]
[312693113,1706146281335,-758.0,0.0005178,2]
[312693114,1706146281344,-609.56,0.0005178,31]
[312693115,1706146281354,-278.52998828,0.0005178,31]
[312693116,1706146281366,-756.88,0.0005178,31]
[312693117,1706146281376,-3253.59833192,0.00051797,28]
[312693118,1706146281386,-1500.0,0.00051836,7]
[312693119,1706146281397,-150.0,0.00051841,7]
[312693120,1706146281406,-158.45724666,0.00051841,60]
[312693121,1706146281417,-150.0,0.00051859,7]
[312693122,1706146281426,-150.0,0.00051866,7]
[312693123,1706146281437,-153.95702125,0.00051886,60]
[312693124,1706146281447,-222.26846776,0.00051888,120]
[312693125,1706146281458,-1432.12203069,0.00051899,120]
[312693126,1706146281467,-151.36642332,0.00051912,51]
[312693127,1706146281478,-361.99687226,0.00051912,60]
[312693128,1706146281488,-151.0,0.00051928,2]
[312693129,1706146281499,-155.25098285,0.00051931,60]
[312693130,1706146281509,-150.0,0.00051934,7]
[312693131,1706146281520,-1126.61526386,0.0005194,5]
[312693132,1706146281530,-1247.53418019,0.0005194,120]
[312693133,1706146281540,-171.07045976,0.00051946,60]
[312693134,1706146281553,-150.0,0.00051947,7]
[312693135,1706146281564,-200.0,0.00051957,30]
[312693136,1706146281574,-150.0,0.00051958,7]
[312693137,1706146281584,-234.30898267,0.00051959,30]
[312693138,1706146281595,-234.30898267,0.00051962,30]
[312693139,1706146281606,-150.0,0.00051964,7]
[312693140,1706146281617,-153.21386405,0.00051965,60]
[312693141,1706146281628,-234.30898267,0.00051975,30]
[312693142,1706146281639,-200.0,0.00051979,30]
[312693143,1706146281650,-150.0,0.00051981,7]
[312693144,1706146281660,-200.0,0.00051981,30]
[312693145,1706146281670,-150.0,0.0005199,7]
[312693146,1706146281681,-207.0,0.0005199,2]
[312693147,1706146281693,-200.0,0.00051996,30]
[312693148,1706146281704,-158.45724666,0.00051996,60]
[312693149,1706146281715,-234.30898267,0.00051998,30]
[312693150,1706146281725,-174.19,0.00052,7]
[312693151,1706146281735,-2610.35304989,0.00052,2]
[312693152,1706146281746,-600.0,0.00052,53]
[312693153,1706146281756,-150.0,0.00052,120]
[312693154,1706146281766,-150.0,0.00052,40]
[312693155,1706146281776,-500.0,0.00052,120]
[312693156,1706146281785,-200.0,0.00052,120]
[312693157,1706146281795,-150.0,0.00052003,7]
[312693158,1706146281811,-150.0,0.0005201,7]
[312693159,1706146281821,-152.22862118,0.00052014,60]
[312693160,1706146281831,-428.93267564,0.00052018,60]
[312693161,1706146281844,-1073.01879214,0.00052026,60]
[312693162,1706146281854,-150.0,0.00052033,7]
[312693163,1706146281864,-150.0,0.00052035,7]
[312693164,1706146281875,-150.0,0.00052037,7]
[312693165,1706146281887,-150.0,0.0005204,7]
[312693166,1706146281897,-428.93267564,0.00052041,60]
[312693167,1706146281910,-150.37716717,0.00052046,60]
[312693168,1706146281920,-150.37716717,0.00052051,60]
[312693169,1706146281932,-500.0,0.00052053,31]
[312693170,1706146281946,-500.0,0.00052053,31]
[312693171,1706146281956,-500.0,0.00052053,31]
[312693172,1706146281966,-500.0,0.00052053,31]
[312693173,1706146281976,-500.0,0.00052053,31]
[312693174,1706146281986,-500.0,0.00052053,31]
[312693175,1706146281996,-500.0,0.00052053,31]
[312693176,1706146282006,-500.0,0.00052053,31]
[312693177,1706146282016,-500.0,0.00052053,31]
[312693178,1706146282027,-500.0,0.00052053,31]
[312693179,1706146282037,-500.0,0.00052053,31]
[312693180,1706146282046,-500.0,0.00052053,31]
[312693181,1706146282063,-500.0,0.00052053,31]
[312693182,1706146282074,-500.0,0.00052053,31]
[312693183,1706146282085,-151.0,0.00052054,14]
[312693184,1706146282096,-214.99388,0.00052054,14]
[312693185,1706146282106,-214.99388,0.00052054,14]
[312693186,1706146282115,-154.974933,0.00052054,14]
[312693187,1706146282125,-154.974933,0.00052054,14]
[312693188,1706146282136,-500.0,0.00052054,31]
[312693189,1706146282147,-500.0,0.00052054,31]
[312693190,1706146282157,-533.08011256,0.00052054,31]
[312693191,1706146282168,-500.0,0.00052054,20]
[312693192,1706146282178,-500.0,0.00052054,31]
[312693193,1706146282189,-646.21349248,0.00052054,14]
[312693194,1706146282199,-500.0,0.00052054,31]
[312693195,1706146282209,-510.17183766,0.00052054,31]